bitfinex/quotes_BTCUSD_20250830
["timestamp","ask_amount","ask_price","bid_price","bid_amount"]
[1756567335270,0.55831995,108970.0,108960.0,0.15448]
[1756567335470,0.55831995,108970.0,108960.0,0.24746001]
[1756567335675,0.56027995,108970.0,108960.0,0.51656001]
[1756567337087,0.56027995,108970.0,108960.0,0.51856001]
[1756567337288,0.21574425,108970.0,108960.0,0.52381001]
[1756567337500,0.56027995,108970.0,108960.0,0.52381001]
[1756567337938,0.56027995,108970.0,108960.0,0.51856001]
[1756567338695,0.56027995,108970.0,108960.0,0.52181001]
[1756567338917,0.56027995,108970.0,108960.0,0.7073636]
[1756567339576,0.56027995,108970.0,108960.0,0.52381001]
[1756567340444,0.56027995,108970.0,108960.0,0.7073636]
[1756567340670,0.54306955,108970.0,108960.0,0.7073636]
[1756567340870,0.56028883,108970.0,108960.0,0.52381001]
[1756567341026,0.56028883,108970.0,108960.0,0.52181001]
[1756567341240,0.56028883,108970.0,108960.0,0.51856001]
[1756567341674,0.56307883,108970.0,108960.0,0.51852001]
[1756567341924,0.56307883,108970.0,108960.0,0.2711]
[1756567342124,0.56953663,108970.0,108960.0,0.42554]
[1756567343944,0.22500093,108970.0,108960.0,0.42554]
[1756567344173,0.22221093,108970.0,108960.0,0.42554]
[1756567344373,0.56674663,108970.0,108960.0,0.42554]
[1756567344902,0.56953663,108970.0,108960.0,0.42554]
[1756567345251,0.56674663,108970.0,108960.0,0.42554]
[1756567345882,0.56953663,108970.0,108960.0,0.42554]
[1756567347087,0.56665486,108970.0,108960.0,0.42554]
[1756567347581,0.56665486,108970.0,108960.0,0.15644]
[1756567350130,0.56944486,108970.0,108960.0,0.15644]
[1756567350336,0.91398056,108970.0,108960.0,0.15648]
[1756567350649,0.93381814,108970.0,108960.0,0.15648]
[1756567351071,0.58928244,108970.0,108960.0,0.15648]
[1756567351305,0.58928287,108970.0,108960.0,0.15648]
[1756567351518,0.93396439,108970.0,108960.0,0.15648]
[1756567352092,0.93396284,108970.0,108960.0,0.15648]
[1756567353299,0.56951793,108970.0,108960.0,0.15648]
[1756567353972,0.91412782,108970.0,108960.0,0.15648]
[1756567354599,0.91412782,108970.0,108960.0,0.002]
[1756567354797,0.97963828,108970.0,108960.0,0.1564]
[1756567355604,0.93396,108970.0,108960.0,0.1564]
[1756567355807,0.93396,108970.0,108960.0,0.002]
[1756567355961,0.93396,108970.0,108960.0,0.1564]
[1756567356626,0.93396,108970.0,108960.0,0.15652]
[1756567356826,1.27396,108970.0,108960.0,0.15652]
[1756567357360,1.27395208,108970.0,108960.0,0.15652]
[1756567357879,1.3622484,108970.0,108960.0,0.15652]
[1756567358299,1.27395208,108970.0,108960.0,0.15652]
[1756567359068,1.2541199,108970.0,108960.0,0.15652]
[1756567359300,1.27394507,108970.0,108960.0,0.15652]
[1756567359717,4.00490707,108970.0,108960.0,0.15644]
[1756567360133,4.10677179,108970.0,108960.0,0.002]
[1756567360366,4.2469538,108970.0,108960.0,0.002]
[1756567360594,4.22974326,108970.0,108960.0,0.002]
[1756567360820,4.24694911,108970.0,108960.0,0.002]
[1756567361259,4.22216764,108970.0,108960.0,0.002]
[1756567361467,4.24694911,108970.0,108960.0,0.002]
[1756567361684,0.52355359,108960.0,108950.0,0.2168]
[1756567361883,3.98721401,108960.0,108950.0,0.2168]
[1756567362110,1.34929833,108960.0,108950.0,0.0706]
[1756567362326,1.26099876,108960.0,108950.0,0.22516]
[1756567362535,1.26099876,108960.0,108950.0,0.0706]
[1756567362739,1.26099876,108960.0,108950.0,0.22616]
[1756567362978,1.28860276,108960.0,108950.0,0.0716]
[1756567363199,1.28860276,108960.0,108950.0,0.22616]
[1756567366162,0.59659298,108960.0,108950.0,0.23147]
[1756567366401,1.26598759,108960.0,108950.0,0.23147]
[1756567366633,1.26402759,108960.0,108950.0,0.23147]
[1756567367242,0.9194177,108960.0,108950.0,0.23147]
[1756567368814,0.91940958,108960.0,108950.0,0.23147]
[1756567369251,0.57296174,108960.0,108950.0,0.23147]
[1756567370272,0.22835185,108960.0,108950.0,0.23147]
[1756567370481,0.57296174,108960.0,108950.0,0.23147]
[1756567370717,0.04479826,108960.0,108950.0,0.50802045]
[1756567370933,0.55576748,108960.0,108950.0,0.50802045]
[1756567371243,0.55576748,108960.0,108950.0,0.77712045]
[1756567371452,0.52816348,108960.0,108950.0,1.02712045]
[1756567372348,0.02807476,108970.0,108960.0,0.18355359]
[1756567372555,0.54582049,108970.0,108960.0,0.2817736]
[1756567372766,0.5286234,108970.0,108960.0,0.2817736]
[1756567373135,0.54581993,108970.0,108960.0,0.09822001]
[1756567373385,0.5286234,108970.0,108960.0,0.09822001]
[1756567373803,0.5286234,108970.0,108960.0,0.2817736]
[1756567375668,0.18401351,108970.0,108960.0,0.2817736]
[1756567375875,0.5286234,108970.0,108960.0,0.2817736]
[1756567376264,0.00047676,108970.0,108960.0,0.2817736]
[1756567377377,0.00047676,108970.0,108960.0,0.5508736]
[1756567377785,0.00047676,108970.0,108960.0,0.57181242]
[1756567378460,0.00047676,108970.0,108960.0,0.82181242]
[1756567380507,0.18401351,108970.0,108960.0,0.82181242]
[1756567380723,0.5286234,108970.0,108960.0,0.82181242]
[1756567381131,0.18401351,108970.0,108960.0,0.82181242]
[1756567381363,0.5286234,108970.0,108960.0,0.82181242]
[1756567381518,0.18401351,108970.0,108960.0,0.82181242]
[1756567381724,0.5286234,108970.0,108960.0,0.82381242]
[1756567381941,0.18401351,108970.0,108960.0,0.82381242]
[1756567382150,0.5286234,108970.0,108960.0,0.82381242]
[1756567383548,0.18401351,108970.0,108960.0,0.82381242]
[1756567383808,0.5286234,108970.0,108960.0,0.82381242]
[1756567385676,0.18401351,108970.0,108960.0,0.82381242]
[1756567385912,0.5286234,108970.0,108960.0,0.82381242]
[1756567386554,0.18401351,108970.0,108960.0,0.82381242]
[1756567386775,0.5286234,108970.0,108960.0,0.82381242]
[1756567388248,0.5286234,108970.0,108960.0,0.98157242]
[1756567388864,0.18401351,108970.0,108960.0,0.98157242]
[1756567389074,0.5286234,108970.0,108960.0,0.98157242]
[1756567390866,0.18401351,108970.0,108960.0,0.98157242]
[1756567391073,0.5286234,108970.0,108960.0,0.98157242]
[1756567397026,0.18401351,108970.0,108960.0,0.98157242]
[1756567397241,0.34508665,108970.0,108960.0,0.98157242]
[1756567398769,0.00047676,108970.0,108960.0,0.98157242]
[1756567398968,0.34508665,108970.0,108960.0,0.98157242]
[1756567399677,0.5286234,108970.0,108960.0,0.98157242]
[1756567400028,0.5286234,108970.0,108960.0,0.82381242]
[1756567400244,0.5286234,108970.0,108960.0,0.98141242]
[1756567402511,0.5305734,108970.0,108960.0,0.79797883]
[1756567402728,0.55058993,108970.0,108960.0,0.79277883]
[1756567402957,0.54780052,108970.0,108960.0,0.79277883]
[1756567404030,0.54780052,108970.0,108960.0,0.77184001]
[1756567404689,0.89520041,108970.0,108960.0,0.77184001]
[1756567404896,0.89520041,108970.0,108960.0,0.67886]
[1756567405164,0.90166211,108970.0,108960.0,0.67886]
[1756567405409,0.89520041,108970.0,108960.0,0.42886]
[1756567405617,0.55059052,108970.0,108960.0,0.42686]
[1756567405989,0.92150708,108970.0,108960.0,0.42778]
[1756567406207,0.90166056,108970.0,108960.0,0.42778]
[1756567406761,0.92150075,108970.0,108960.0,0.001]
[1756567406987,0.92150075,108970.0,108960.0,0.15864]
[1756567407402,1.26150075,108970.0,108960.0,0.15864]
[1756567408053,1.41914075,108970.0,108960.0,0.001]
[1756567408223,1.41914075,108970.0,108960.0,0.15864]
[1756567408858,1.50743707,108970.0,108960.0,0.001]
[1756567409035,4.35300233,108970.0,108960.0,0.001]
[1756567409517,4.35297474,108970.0,108960.0,0.001]
[1756567413227,4.38057774,108970.0,108960.0,0.001]
[1756567413444,4.38053943,108970.0,108960.0,0.001]
[1756567413642,0.52355359,108960.0,108950.0,0.15756]
[1756567413845,0.18358729,108940.0,108930.0,0.07356]
[1756567414054,0.52819718,108940.0,108930.0,0.32398001]
[1756567414221,0.53014718,108940.0,108930.0,0.16358001]
[1756567414618,0.53014718,108940.0,108930.0,0.32134001]
[1756567414619,0.54732257,108940.0,108930.0,0.32134001]
[1756567414842,0.54732257,108940.0,108930.0,0.32632001]
[1756567415015,0.54732257,108940.0,108930.0,0.32832001]
[1756567415893,0.54732257,108940.0,108930.0,0.23334]
[1756567416152,0.54732257,108940.0,108930.0,0.23434]
[1756567416344,0.53014718,108940.0,108930.0,0.23534]
[1756567416679,0.53014718,108940.0,108930.0,0.23634]
[1756567416878,0.52819718,108940.0,108930.0,0.23634]
[1756567417531,0.18358729,108940.0,108930.0,0.23634]
[1756567417703,0.52819718,108940.0,108930.0,0.23634]
[1756567418712,0.52819718,108940.0,108930.0,0.51292415]
[1756567418916,0.52819718,108940.0,108930.0,0.32932001]
[1756567420108,0.52819718,108940.0,108930.0,0.51292415]
[1756567421570,0.52819718,108940.0,108930.0,0.32932001]
[1756567423665,0.52819718,108940.0,108930.0,0.51292415]
[1756567426424,0.52819718,108940.0,108930.0,0.32932001]
[1756567429722,0.52819718,108940.0,108930.0,0.51292415]
[1756567429887,0.52819718,108940.0,108930.0,0.32932001]
[1756567430073,0.52819718,108940.0,108930.0,0.51292415]
[1756567430311,0.54537369,108940.0,108930.0,0.51292415]
[1756567431457,0.54537369,108940.0,108930.0,0.76292415]
[1756567431630,0.54537369,108940.0,108930.0,0.57932001]
[1756567433088,0.2007638,108940.0,108930.0,0.57932001]
[1756567433310,0.54537369,108940.0,108930.0,0.57932001]
[1756567434423,0.54537369,108940.0,108930.0,0.32932001]
[1756567434722,0.52819718,108940.0,108930.0,0.32932001]
[1756567434965,0.54540902,108940.0,108930.0,0.17156001]
[1756567435166,0.54540902,108940.0,108930.0,0.32868001]
[1756567435378,0.5454159,108940.0,108930.0,0.32868001]
[1756567435803,0.5454159,108940.0,108930.0,0.17156001]
[1756567435983,0.5454159,108940.0,108930.0,0.32860001]
[1756567436128,0.5473959,108940.0,108930.0,0.32860001]
[1756567436731,0.5454159,108940.0,108930.0,0.32860001]
[1756567437340,0.55187758,108940.0,108930.0,0.57860001]
[1756567437739,0.55187758,108940.0,108930.0,0.42156001]
[1756567437945,0.55187758,108940.0,108930.0,0.57856001]
[1756567438345,0.53465886,108940.0,108930.0,0.57856001]
[1756567438551,0.55189273,108940.0,108930.0,0.57856001]
[1756567439969,0.20728284,108940.0,108930.0,0.76216415]
[1756567440174,0.55189273,108940.0,108930.0,0.76216415]
[1756567441164,0.55189396,108940.0,108930.0,0.76216415]
[1756567441577,0.54543228,108940.0,108930.0,0.76216415]
[1756567442464,0.0172351,108940.0,108930.0,1.05220297]
[1756567442676,0.20082239,108940.0,108930.0,1.05220297]
[1756567442876,0.54543228,108940.0,108930.0,1.05220297]
[1756567444332,0.54543125,108940.0,108930.0,1.05220297]
[1756567445285,0.54549399,108940.0,108930.0,1.05220297]
[1756567448444,0.20082136,108940.0,108930.0,1.05220297]
[1756567448669,0.54549399,108940.0,108930.0,1.05220297]
[1756567448884,0.89016662,108940.0,108930.0,1.05220297]
[1756567449353,0.83172664,108940.0,108930.0,1.05220297]
[1756567451325,0.83172664,108940.0,108930.0,1.0936131]
[1756567451952,0.52825992,108940.0,108930.0,1.0936131]
[1756567453162,0.18358729,108940.0,108930.0,1.0936131]
[1756567453346,0.52825992,108940.0,108930.0,1.0936131]
[1756567454403,0.34467263,108940.0,108930.0,1.0936131]
[1756567455398,0.21118791,108950.0,108930.0,1.0936131]
[1756567455609,0.34467263,108940.0,108930.0,0.9336531]
[1756567455826,0.34467263,108940.0,108930.0,1.0901731]
[1756567456504,0.34467263,108940.0,108930.0,1.0933331]
[1756567456707,0.34467263,108940.0,108930.0,1.0913331]
[1756567457138,0.37227563,108950.0,108940.0,0.18358729]
[1756567457354,0.37227563,108950.0,108940.0,0.4351173]
[1756567457355,0.34467263,108950.0,108940.0,0.4351173]
[1756567457526,0.34467263,108950.0,108940.0,0.4382773]
[1756567458272,0.22033126,108960.0,108950.0,0.18357044]
[1756567458481,0.88405652,108960.0,108950.0,0.43826045]
[1756567458681,0.88405652,108960.0,108950.0,0.25469001]
[1756567459110,0.19273126,108960.0,108950.0,0.32529001]
[1756567459304,0.53740389,108960.0,108950.0,0.50886045]
[1756567459716,0.19273126,108960.0,108950.0,0.50886045]
[1756567459914,0.53740389,108960.0,108950.0,0.50886045]
[1756567460164,0.53740389,108960.0,108950.0,0.50986045]
[1756567460297,0.53740389,108960.0,108950.0,0.75986045]
[1756567460527,0.21161251,108970.0,108960.0,0.18355359]
[1756567460730,0.53514228,108970.0,108960.0,0.09298001]
[1756567460943,0.53712228,108970.0,108960.0,0.09298001]
[1756567461158,0.55433805,108970.0,108960.0,0.24946001]
[1756567461343,0.55418586,108970.0,108960.0,0.24946001]
[1756567462300,0.54772972,108970.0,108960.0,0.24946001]
[1756567463044,0.54574972,108970.0,108960.0,0.4380636]
[1756567464002,0.36221297,108970.0,108960.0,0.4380636]
[1756567464234,0.01769253,108970.0,108960.0,0.4380636]
[1756567464466,0.00047676,108970.0,108960.0,0.4380636]
[1756567464711,0.52853395,108970.0,108960.0,0.4380236]
[1756567465429,0.52853395,108970.0,108960.0,0.6880236]
[1756567466212,0.52853395,108970.0,108960.0,0.9571236]
[1756567466415,0.52853395,108970.0,108960.0,0.9591236]
[1756567467306,0.52853395,108970.0,108960.0,0.9601236]
[1756567469378,0.52853395,108970.0,108960.0,0.9600036]
[1756567470598,0.52853395,108970.0,108960.0,1.00212601]
[1756567470798,0.3449972,108970.0,108960.0,1.00212601]
[1756567471747,0.52853395,108970.0,108960.0,1.00212601]
[1756567472319,0.52853395,108970.0,108960.0,0.84580601]
[1756567472533,0.52853395,108970.0,108960.0,1.00200601]
[1756567472946,0.52853395,108970.0,108960.0,0.9598836]
[1756567474352,0.53051395,108970.0,108960.0,0.9567836]
[1756567474551,0.18599351,108970.0,108960.0,0.9567836]
[1756567474871,0.53051395,108970.0,108960.0,0.9598036]
[1756567476530,0.52853395,108970.0,108960.0,0.9598036]
[1756567476792,0.3449972,108970.0,108960.0,0.9598036]
[1756567477529,0.00047676,108970.0,108960.0,0.9598036]
[1756567477728,0.3449972,108970.0,108960.0,0.9598036]
[1756567478627,0.3449972,108970.0,108960.0,0.98074242]
[1756567478989,0.00047676,108970.0,108960.0,0.98074242]
[1756567479942,0.53051395,108970.0,108960.0,0.98054242]
[1756567480158,0.53051395,108970.0,108960.0,0.79694883]
[1756567480582,0.53051395,108970.0,108960.0,0.98050242]
[1756567481341,0.53050563,108970.0,108960.0,0.98050242]
[1756567481540,0.53050563,108970.0,108960.0,0.79694883]
[1756567481778,0.53050563,108970.0,108960.0,0.98050242]
[1756567483415,0.18599351,108970.0,108960.0,0.98050242]
[1756567483634,0.53050563,108970.0,108960.0,0.98050242]
[1756567484174,0.18599351,108970.0,108960.0,0.98050242]
[1756567484384,0.53050563,108970.0,108960.0,0.98050242]
[1756567484801,0.53050563,108970.0,108960.0,0.79690883]
[1756567486403,0.18599351,108970.0,108960.0,0.79690883]
[1756567486536,0.53050563,108970.0,108960.0,0.79690883]
[1756567486745,0.53050563,108970.0,108960.0,0.79694883]
[1756567487431,0.53050563,108970.0,108960.0,0.98050242]
[1756567488049,0.52852563,108970.0,108960.0,0.98050242]
[1756567488841,0.34498888,108970.0,108960.0,0.98050242]
[1756567489183,0.36220581,108970.0,108960.0,0.98050242]
[1756567490007,0.00047676,108970.0,108960.0,0.98050242]
[1756567490211,0.34498888,108970.0,108960.0,0.98050242]
[1756567491597,0.52852563,108970.0,108960.0,0.98050242]
[1756567492041,0.53050563,108970.0,108960.0,0.79674883]
[1756567492246,0.54773234,108970.0,108960.0,0.98030242]
[1756567492868,0.54575234,108970.0,108960.0,0.98030242]
[1756567493768,0.52852563,108970.0,108960.0,0.98030242]
[1756567493975,0.54575503,108970.0,108960.0,0.98030242]
[1756567495927,0.36221828,108970.0,108960.0,0.98030242]
[1756567497127,0.34498888,108970.0,108960.0,0.98030242]
[1756567498555,0.00047676,108970.0,108960.0,0.98030242]
[1756567498765,0.34498888,108970.0,108960.0,0.98030242]
[1756567499582,0.52852563,108970.0,108960.0,0.98030242]
[1756567500779,0.18401351,108970.0,108960.0,0.98030242]
[1756567500997,0.52852563,108970.0,108960.0,0.98030242]
[1756567502514,0.53050563,108970.0,108960.0,0.97696242]
[1756567502903,0.18401351,108970.0,108960.0,0.98009242]
[1756567503062,0.53050563,108970.0,108960.0,0.98009242]
[1756567504081,0.53050563,108970.0,108960.0,0.79653883]
[1756567504302,0.53050563,108970.0,108960.0,0.98009242]
[1756567504744,0.53050563,108970.0,108960.0,0.77048001]
[1756567504973,0.55051803,108970.0,108960.0,0.61508001]
[1756567505179,0.89503015,108970.0,108960.0,0.77044001]
[1756567505398,0.89503015,108970.0,108960.0,0.52044001]
[1756567505833,0.89503015,108970.0,108960.0,0.36508001]
[1756567506050,0.89503015,108970.0,108960.0,0.52048001]
[1756567506663,0.89503015,108970.0,108960.0,0.2721]
[1756567506864,0.87779775,108970.0,108960.0,0.4275]
[1756567507209,0.90149175,108970.0,108960.0,0.4275]
[1756567507418,0.92908875,108970.0,108960.0,0.4275]
[1756567507626,0.94893204,108970.0,108960.0,0.15848]
[1756567508957,1.28893204,108970.0,108960.0,0.15848]
[1756567510052,1.28893204,108970.0,108960.0,0.1584]
[1756567511360,1.28919048,108970.0,108960.0,0.1584]
[1756567513005,1.28918054,108970.0,108960.0,0.1584]
[1756567515005,0.59989786,108970.0,108960.0,0.1584]
[1756567515210,1.28918054,108970.0,108960.0,0.1584]
[1756567515596,0.59711786,108970.0,108960.0,0.1584]
[1756567515813,0.92191415,108970.0,108960.0,0.16369]
[1756567516430,0.87598801,108970.0,108960.0,0.16369]
[1756567516639,0.53134667,108970.0,108960.0,0.16369]
[1756567516850,0.87598801,108970.0,108960.0,0.16369]
[1756567517234,0.87727801,108970.0,108960.0,0.16369]
[1756567517803,0.87727394,108970.0,108960.0,0.16369]
[1756567518868,0.5326326,108970.0,108960.0,0.16369]
[1756567519069,0.87727394,108970.0,108960.0,0.16369]
[1756567519882,0.87598394,108970.0,108960.0,0.16369]
[1756567520445,0.87727394,108970.0,108960.0,0.16369]
[1756567521424,0.87727394,108970.0,108960.0,0.16153]
[1756567523418,0.5326326,108970.0,108960.0,0.16364]
[1756567523621,0.87598394,108970.0,108960.0,0.16364]
[1756567525595,0.1913426,108970.0,108960.0,0.16364]
[1756567525790,0.52953771,108970.0,108960.0,0.16364]
[1756567527405,0.52953771,108970.0,108960.0,0.41364]
[1756567527972,0.18489637,108970.0,108960.0,0.6901736]
[1756567528566,0.52953771,108970.0,108960.0,0.6901736]
[1756567529942,0.52817809,108970.0,108960.0,0.6901736]
[1756567530149,0.18353675,108970.0,108960.0,0.6901736]
[1756567531504,0.18353675,108970.0,108960.0,0.9592736]
[1756567532082,0.57605857,108980.0,108960.0,0.9592736]
[1756567532294,0.24866559,108980.0,108970.0,0.07371]
[1756567532499,0.24866559,108980.0,108970.0,0.07582]
[1756567533558,0.59330693,108980.0,108970.0,0.07582]
[1756567534180,0.59330693,108980.0,108970.0,0.23102]
[1756567534523,0.59330693,108980.0,108970.0,0.48202]
[1756567537353,0.93764135,108980.0,108970.0,0.48202]
[1756567538957,0.93763704,108980.0,108970.0,0.48202]
[1756567539958,0.24866128,108980.0,108970.0,0.48202]
[1756567540181,0.93763704,108980.0,108970.0,0.48202]
[1756567542411,0.24866128,108980.0,108970.0,0.48182]
[1756567542631,0.92044063,108980.0,108970.0,0.66535675]
[1756567542862,0.92044063,108980.0,108970.0,0.51035675]
[1756567543050,0.92044063,108980.0,108970.0,0.48178]
[1756567544088,0.93763706,108980.0,108970.0,0.48178]
[1756567545681,0.93763706,108980.0,108970.0,1.02739676]
[1756567545682,0.91004206,108980.0,108970.0,1.02739676]
[1756567546245,0.21189031,108980.0,108970.0,1.02739676]
[1756567546455,0.90086607,108980.0,108970.0,1.02739676]
[1756567546672,0.52930009,109000.0,108970.0,1.02739676]
[1756567546673,0.0012,109000.0,108990.0,0.67034307]
[1756567546894,0.00479923,109020.0,109010.0,0.5234694]
[1756567547125,0.0002,109040.0,109020.0,0.52225782]
[1756567547345,0.0002,109040.0,109030.0,0.60081657]
[1756567547553,0.00024765,109040.0,109030.0,0.67414352]
[1756567547798,0.00024765,109040.0,109030.0,1.07414352]
[1756567548018,0.00024765,109040.0,109030.0,0.82263565]
[1756567548260,0.34448788,109050.0,109040.0,0.18341892]
[1756567548476,0.57723544,109060.0,109040.0,0.282816]
[1756567548677,0.34956788,109050.0,109040.0,0.00641707]
[1756567548933,0.00508,109050.0,109040.0,0.36625481]
[1756567549149,0.00508,109050.0,109040.0,0.45281775]
[1756567549356,4.763e-05,109060.0,109050.0,0.20434092]
[1756567549562,0.55734954,109080.0,109060.0,0.18244808]
[1756567549765,0.53025292,109080.0,109070.0,0.24846001]
[1756567549975,0.53025292,109080.0,109070.0,0.26547555]
[1756567549976,0.53223292,109080.0,109070.0,0.26547555]
[1756567550185,0.18841751,109080.0,109070.0,0.26547555]
[1756567550388,0.53223292,109080.0,109070.0,0.26547555]
[1756567550596,0.53223292,109080.0,109070.0,0.24846001]
[1756567551519,0.53523292,109080.0,109070.0,0.24946001]
[1756567551937,0.87904833,109080.0,109070.0,0.15668]
[1756567552371,0.87904833,109080.0,109070.0,0.001]
[1756567552533,0.87904833,109080.0,109070.0,0.15664]
[1756567554718,0.87904833,109080.0,109070.0,0.001]
[1756567554966,1.21904833,109080.0,109070.0,0.001]
[1756567555593,3.95001033,109080.0,109070.0,0.001]
[1756567557038,0.23276338,109050.0,109040.0,0.25]
[1756567557251,0.9253742,109050.0,109040.0,0.25]
[1756567557464,0.2327802,109040.0,109030.0,0.15552]
[1756567557678,0.23279703,109030.0,109020.0,0.3926743]
[1756567557889,0.92540785,109030.0,109020.0,0.3926743]
[1756567558103,0.23777703,109030.0,109020.0,0.5482343]
[1756567558329,0.58159244,109030.0,109020.0,0.5482343]
[1756567558536,0.60917544,109030.0,109020.0,0.2982343]
[1756567558710,0.60917544,109030.0,109020.0,0.29828193]
[1756567558918,0.95299085,109030.0,109020.0,0.29828193]
[1756567559117,0.60917544,109030.0,109020.0,0.29828193]
[1756567559501,0.60917544,109030.0,109020.0,0.22764193]
[1756567559703,1.38128717,109030.0,109020.0,0.22764193]
[1756567559931,4.10892661,109030.0,109020.0,4.763e-05]
[1756567560167,4.10892661,109030.0,109020.0,0.00104763]
[1756567560341,4.17959285,109030.0,109020.0,0.00404763]
[1756567560542,4.02395285,109030.0,109020.0,0.00404763]
[1756567560939,0.94917544,109030.0,109020.0,0.00404763]
[1756567561115,0.60917544,109030.0,109020.0,0.07532193]
[1756567561364,0.60617544,109030.0,109020.0,0.07732193]
[1756567561544,0.60617544,109030.0,109020.0,0.16830194]
[1756567561751,0.57859244,109030.0,109020.0,0.16730194]
[1756567561962,0.57859244,109030.0,109020.0,0.17130194]
[1756567562831,0.52725116,109030.0,109020.0,0.17359509]
[1756567563040,0.52725116,109030.0,109020.0,0.35704766]
[1756567563252,0.18343575,109030.0,109020.0,0.35575451]
[1756567563468,0.52725116,109030.0,109020.0,0.35575451]
[1756567564534,0.52725116,109030.0,109020.0,0.60875451]
[1756567564916,0.34381541,109030.0,109020.0,0.60875451]
[1756567565117,0.54159204,109040.0,109030.0,0.20437457]
[1756567565331,0.24193348,109050.0,109030.0,0.52651458]
[1756567565538,0.24193348,109050.0,109040.0,0.00216]
[1756567565742,0.58574889,109050.0,109040.0,0.00216]
[1756567566171,0.58574889,109050.0,109040.0,0.09743274]
[1756567566172,0.24193348,109050.0,109040.0,0.09743274]
[1756567566373,0.58574889,109050.0,109040.0,0.09743274]
[1756567566767,0.58574889,109050.0,109040.0,0.28085166]
[1756567566975,0.58574889,109050.0,109040.0,0.27855893]
[1756567567188,0.58574889,109050.0,109040.0,0.27955893]
[1756567567389,0.60028249,109050.0,109040.0,0.52955893]
[1756567567873,0.54175111,109050.0,109040.0,0.52955893]
[1756567568171,0.23376338,109050.0,109040.0,0.52955893]
[1756567568378,0.59211239,109050.0,109040.0,0.52955893]
[1756567568581,0.23376338,109050.0,109040.0,0.52955893]
[1756567568790,0.59111239,109050.0,109040.0,0.34614001]
[1756567568991,0.23474338,109050.0,109040.0,0.34614001]
[1756567569209,0.1834021,109050.0,109040.0,0.55249775]
[1756567569413,0.1834021,109050.0,109040.0,0.34598001]
[1756567569414,0.59609239,109050.0,109040.0,0.34598001]
[1756567569620,0.59609239,109050.0,109040.0,0.50658001]
[1756567569835,0.9544414,109050.0,109040.0,0.258]
[1756567570039,3.77369972,109050.0,109040.0,0.41372]
[1756567570249,3.6854034,109050.0,109040.0,0.41372]
[1756567570473,3.32705439,109050.0,109040.0,0.15872]
[1756567570614,3.34412899,109050.0,109040.0,0.15872]
[1756567570816,3.702478,109050.0,109040.0,0.15572]
[1756567571037,3.34412899,109050.0,109040.0,0.13572]
[1756567571237,3.37170899,109050.0,109040.0,0.13972]
[1756567571670,4.070058,109050.0,109040.0,0.15764]
[1756567572109,3.71170899,109050.0,109040.0,0.15764]
[1756567572447,3.71170899,109050.0,109040.0,0.15564]
[1756567572823,3.71170899,109050.0,109040.0,0.15664]
[1756567572824,0.98074699,109050.0,109040.0,0.15664]
[1756567573435,0.93138571,109050.0,109040.0,0.15664]
[1756567573647,0.98074699,109050.0,109040.0,0.15664]
[1756567573790,0.98077587,109050.0,109040.0,0.15664]
[1756567574216,0.62242686,109050.0,109040.0,0.15664]
[1756567574432,0.98077587,109050.0,109040.0,0.15664]
[1756567576883,0.64077587,109050.0,109040.0,0.1588]
[1756567577092,0.63777587,109050.0,109040.0,0.1588]
[1756567577292,0.64077587,109050.0,109040.0,0.1588]
[1756567577604,0.63579587,109050.0,109040.0,0.1588]
[1756567578198,0.58643459,109050.0,109040.0,0.1588]
[1756567578401,0.63579587,109050.0,109040.0,0.1588]
[1756567578982,0.637826,109050.0,109040.0,0.1588]
[1756567579201,0.640826,109050.0,109040.0,0.1588]
[1756567579416,0.640826,109050.0,109040.0,0.4088]
[1756567579597,0.27749699,109050.0,109040.0,0.4088]
[1756567579740,0.637956,109050.0,109040.0,0.4088]
[1756567579942,0.640956,109050.0,109040.0,0.4088]
[1756567580145,0.64095851,109050.0,109040.0,0.4088]
[1756567580393,0.64095851,109050.0,109040.0,0.251]
[1756567580545,0.64095851,109050.0,109040.0,0.40644]
[1756567580951,0.64095851,109050.0,109040.0,0.4064]
[1756567582096,0.64095851,109050.0,109040.0,0.40835]
[1756567582739,0.64095851,109050.0,109040.0,0.4064]
[1756567582953,0.98095851,109050.0,109040.0,0.4064]
[1756567584743,0.95337851,109050.0,109040.0,0.4064]
[1756567587283,0.95340384,109050.0,109040.0,0.251]
[1756567587486,1.28321781,109050.0,109040.0,0.4062]
[1756567588200,1.28966271,109050.0,109040.0,0.251]
[1756567588407,1.28966271,109050.0,109040.0,0.1562]
[1756567588760,1.28966271,109050.0,109040.0,0.001]
[1756567588959,1.28966271,109050.0,109040.0,0.15616]
[1756567589180,1.28966271,109050.0,109040.0,0.001]
[1756567589541,1.28966271,109050.0,109040.0,0.15616]
[1756567590765,1.28967675,109050.0,109040.0,0.15616]
[1756567591665,1.28967642,109050.0,109040.0,0.15616]
[1756567593760,1.28967642,109050.0,109040.0,0.15608]
[1756567601391,1.28968431,109050.0,109040.0,0.15608]
[1756567601647,1.28968724,109050.0,109040.0,0.15608]
[1756567602282,1.28968794,109050.0,109040.0,0.15608]
[1756567603186,0.60152496,109050.0,109040.0,0.15608]
[1756567603390,1.28968794,109050.0,109040.0,0.15608]
[1756567604806,1.30950474,109050.0,109040.0,0.15608]
[1756567605037,1.30950474,109050.0,109040.0,0.001]
[1756567605241,1.73771885,109050.0,109040.0,0.001]
[1756567605391,1.73771885,109050.0,109040.0,0.15592]
[1756567605643,1.39363736,109050.0,109040.0,0.15592]
[1756567606041,1.54855736,109050.0,109040.0,0.15592]
[1756567606853,1.58817757,109050.0,109040.0,0.15592]
[1756567607093,1.43325757,109050.0,109040.0,0.15592]
[1756567607411,1.40848973,109050.0,109040.0,0.15592]
[1756567607614,4.48353322,109050.0,109040.0,0.001]
[1756567607826,4.66322106,109050.0,109040.0,0.001]
[1756567608031,4.69625654,109050.0,109040.0,0.001]
[1756567610239,4.68140417,109050.0,109040.0,0.001]
[1756567610595,4.64836869,109050.0,109040.0,0.001]
[1756567610805,4.3042872,109050.0,109040.0,0.001]
[1756567611654,4.1493672,109050.0,109040.0,0.001]
[1756567612114,4.14935109,109050.0,109040.0,0.001]
[1756567612533,4.1493513,109050.0,109040.0,0.001]
[1756567614126,1.30948884,109050.0,109040.0,0.00309]
[1756567615514,1.38134878,109050.0,109040.0,0.00309]
[1756567615680,1.30948884,109050.0,109040.0,0.00309]
[1756567616291,1.30608884,109050.0,109040.0,0.00309]
[1756567616481,1.30608884,109050.0,109040.0,0.001]
[1756567617569,1.30608884,109050.0,109040.0,0.15592]
[1756567619029,1.30609231,109050.0,109040.0,0.15592]
[1756567621409,1.30609231,109050.0,109040.0,0.15801]
[1756567621610,1.30309231,109050.0,109040.0,0.15801]
[1756567621826,1.3031011,109050.0,109040.0,0.15801]
[1756567622059,1.3062911,109050.0,109040.0,0.15801]